{"text_format":"3","workbook":"xlsx","n_sheets":2,"sheets":["Fluxo de caixa","Gráfico de fluxo de caixa"],"not_rendered":{"charts":1,"defined_names":4},"read":"whole","date_system":"1900"}

{"sheet":"Fluxo de caixa","index":0,"n_rows":62,"n_cols":16,"rows_kept":62,"merged":[[0,1,0,15],[1,1,1,15]]}
[null,"ADATUM CORPORATION"]
[null,"Projeção de fluxo de caixa de pequenas empresas"]
[]
[null,"Data inicial",{"$f":"TODAY()","v":"2023-03-17"}]
[null,"Alerta de mínimo de saldo em dinheiro",null,{"$f":"Mínimum_em_caixa","v":0},{"$f":"Mínimum_em_caixa","v":0},0,0,0,0,0,0,0,0,0,0]
[]
[null,null,"Início","Jan-xx","Fev-xx","Mar-xx","Abr-xx","Mai-xx","Jun-xx","Jul-xx","Ago-xx","Set-xx","Out-xx","Nov-xx","Dez-xx","Total"]
[null,"Dinheiro em caixa (início do mês)",null,{"$f":"C54","v":0},0,0,0,0,0,0,0,0,0,0,0]
[]
[null,"RECEBIMENTOS EM DINHEIRO"," ","Jan-xx","Fev-xx","Mar-xx","Abr-xx","Mai-xx","Jun-xx","Jul-xx","Ago-xx","Set-xx","Out-xx","Nov-xx","Dez-xx","Total"]
[null,"Vendas em dinheiro",{"$nulls":13},{"$f":"SUM(D11:O11)","v":0}]
[null,"Devoluções e descontos",{"$nulls":13},0]
[null,"Conjuntos de contas a receber",{"$nulls":13},0]
[null,"Juros, outras receitas",{"$nulls":13},0]
[null,"Proventos de empréstimos",{"$nulls":13},0]
[null,"Contribuições do proprietário",{"$nulls":13},0]
[null,"TOTAL DE RECEBIMENTOS EM DINHEIRO",null,{"$f":"SUM(D11,D13:D16,(D12*-1))","v":0},{"$f":"SUM(E11,E13:E16,(E12*-1))","v":0},0,0,0,0,0,0,0,0,0,0,{"$f":"SUBTOTAL(109,RecebimentosEmDinheiro[Total])","v":0}]
[null,"Total disponível em dinheiro",{"$f":"(C8+RecebimentosEmDinheiro[[#Totals],[ ]])","v":0},{"$f":"(D8+RecebimentosEmDinheiro[[#Totals],[Jan-xx]])","v":0},{"$f":"(E8+RecebimentosEmDinheiro[[#Totals],[Fev-xx]])","v":0},{"$f":"(F8+RecebimentosEmDinheiro[[#Totals],[Mar-xx]])","v":0},{"$f":"(G8+RecebimentosEmDinheiro[[#Totals],[Abr-xx]])","v":0},{"$f":"(H8+RecebimentosEmDinheiro[[#Totals],[Mai-xx]])","v":0},{"$f":"(I8+RecebimentosEmDinheiro[[#Totals],[Jun-xx]])","v":0},{"$f":"(J8+RecebimentosEmDinheiro[[#Totals],[Jul-xx]])","v":0},{"$f":"(K8+RecebimentosEmDinheiro[[#Totals],[Ago-xx]])","v":0},{"$f":"(L8+RecebimentosEmDinheiro[[#Totals],[Set-xx]])","v":0},{"$f":"(M8+RecebimentosEmDinheiro[[#Totals],[Out-xx]])","v":0},{"$f":"(N8+RecebimentosEmDinheiro[[#Totals],[Nov-xx]])","v":0},{"$f":"(O8+RecebimentosEmDinheiro[[#Totals],[Dez-xx]])","v":0}]
[]
[null,"PAGAMENTOS EM DINHEIRO"," ","Jan-xx","Fev-xx","Mar-xx","Abr-xx","Mai-xx","Jun-xx","Jul-xx","Ago-xx","Set-xx","Out-xx","Nov-xx","Dez-xx","Total"]
[null,"Publicidade",{"$nulls":13},{"$f":"SUM(D21:O21)","v":0}]
[null,"Comissões e taxas",{"$nulls":13},0]
[null,"Mão de obra contratada",{"$nulls":13},0]
[null,"Programas de benefícios de funcionários",{"$nulls":13},0]
[null,"Seguro (que não seja de saúde)",{"$nulls":13},0]
[null,"Despesas de juros",{"$nulls":13},0]
[null,"Materiais e suprimentos (em COGS)",{"$nulls":13},0]
[null,"Refeições e entretenimento",{"$nulls":13},0]
[null,"Juros de hipoteca",{"$nulls":13},0]
[null,"Despesas do escritório",{"$nulls":13},0]
[null,"Outras despesas de juros",{"$nulls":13},0]
[null,"Plano de aposentadoria e divisão de lucros",{"$nulls":13},0]
[null,"Compras para revenda",{"$nulls":13},0]
[null,"Aluguel ou leasing",{"$nulls":13},0]
[null,"Aluguel ou leasing: veículos, equipamentos",{"$nulls":13},0]
[null,"Reparos e manutenção",{"$nulls":13},0]
[null,"Suprimentos (não em COGS)",{"$nulls":13},0]
[null,"Impostos e licenças",{"$nulls":13},0]
[null,"Viagens",{"$nulls":13},0]
[null,"Serviços Públicos",{"$nulls":13},0]
[null,"Salários (menos créditos func.)",{"$nulls":13},0]
[null,"Outras despesas",{"$nulls":13},0]
[null,"Outras despesas",{"$nulls":13},0]
[null,"Outras despesas",{"$nulls":13},0]
[null,"Diversos",{"$nulls":13},0]
[null,"SUBTOTAL",null,{"$f":"SUBTOTAL(109,Despesas[Jan-xx])","v":0},{"$f":"SUBTOTAL(109,Despesas[Fev-xx])","v":0},{"$f":"SUBTOTAL(109,Despesas[Mar-xx])","v":0},{"$f":"SUBTOTAL(109,Despesas[Abr-xx])","v":0},{"$f":"SUBTOTAL(109,Despesas[Mai-xx])","v":0},{"$f":"SUBTOTAL(109,Despesas[Jun-xx])","v":0},{"$f":"SUBTOTAL(109,Despesas[Jul-xx])","v":0},{"$f":"SUBTOTAL(109,Despesas[Ago-xx])","v":0},{"$f":"SUBTOTAL(109,Despesas[Set-xx])","v":0},{"$f":"SUBTOTAL(109,Despesas[Out-xx])","v":0},{"$f":"SUBTOTAL(109,Despesas[Nov-xx])","v":0},{"$f":"SUBTOTAL(109,Despesas[Dez-xx])","v":0},{"$f":"SUBTOTAL(109,Despesas[Total])","v":0}]
[null,"PAGAMENTOS EM DINHEIRO"," ","Jan-xx","Fev-xx","Mar-xx","Abr-xx","Mai-xx","Jun-xx","Jul-xx","Ago-xx","Set-xx","Out-xx","Nov-xx","Dez-xx","Total"]
[null,"Pagamento principal do empréstimo",{"$nulls":13},{"$f":"SUM(D48:O48)","v":0}]
[null,"Compras de capital",{"$nulls":13},0]
[null,"Outros custos de inicialização",{"$nulls":13},0]
[null,"Reserva e/ou garantia",{"$nulls":13},0]
[null,"Retirada do proprietário",{"$nulls":13},0]
[null,"TOTAL PAGO EM DINHEIRO",null,{"$f":"Despesas[[#Totals],[Jan-xx]]+SUBTOTAL(109,PagamentosEmDinheiro[Jan-xx])","v":0},{"$f":"Despesas[[#Totals],[Fev-xx]]+SUBTOTAL(109,PagamentosEmDinheiro[Fev-xx])","v":0},{"$f":"Despesas[[#Totals],[Mar-xx]]+SUBTOTAL(109,PagamentosEmDinheiro[Mar-xx])","v":0},{"$f":"Despesas[[#Totals],[Abr-xx]]+SUBTOTAL(109,PagamentosEmDinheiro[Abr-xx])","v":0},{"$f":"Despesas[[#Totals],[Mai-xx]]+SUBTOTAL(109,PagamentosEmDinheiro[Mai-xx])","v":0},{"$f":"Despesas[[#Totals],[Jun-xx]]+SUBTOTAL(109,PagamentosEmDinheiro[Jun-xx])","v":0},{"$f":"Despesas[[#Totals],[Jul-xx]]+SUBTOTAL(109,PagamentosEmDinheiro[Jul-xx])","v":0},{"$f":"Despesas[[#Totals],[Ago-xx]]+SUBTOTAL(109,PagamentosEmDinheiro[Ago-xx])","v":0},{"$f":"Despesas[[#Totals],[Set-xx]]+SUBTOTAL(109,PagamentosEmDinheiro[Set-xx])","v":0},{"$f":"Despesas[[#Totals],[Out-xx]]+SUBTOTAL(109,PagamentosEmDinheiro[Out-xx])","v":0},{"$f":"Despesas[[#Totals],[Nov-xx]]+SUBTOTAL(109,PagamentosEmDinheiro[Nov-xx])","v":0},{"$f":"Despesas[[#Totals],[Dez-xx]]+SUBTOTAL(109,PagamentosEmDinheiro[Dez-xx])","v":0},0]
[null,"Dinheiro em caixa (final do mês)",{"$f":"C18","v":0},{"$f":"D18-PagamentosEmDinheiro[[#Totals],[Jan-xx]]","v":0},{"$f":"E18-PagamentosEmDinheiro[[#Totals],[Fev-xx]]","v":0},{"$f":"F18-PagamentosEmDinheiro[[#Totals],[Mar-xx]]","v":0},{"$f":"G18-PagamentosEmDinheiro[[#Totals],[Abr-xx]]","v":0},{"$f":"H18-PagamentosEmDinheiro[[#Totals],[Mai-xx]]","v":0},{"$f":"I18-PagamentosEmDinheiro[[#Totals],[Jun-xx]]","v":0},{"$f":"J18-PagamentosEmDinheiro[[#Totals],[Jul-xx]]","v":0},{"$f":"K18-PagamentosEmDinheiro[[#Totals],[Ago-xx]]","v":0},{"$f":"L18-PagamentosEmDinheiro[[#Totals],[Set-xx]]","v":0},{"$f":"M18-PagamentosEmDinheiro[[#Totals],[Out-xx]]","v":0},{"$f":"N18-PagamentosEmDinheiro[[#Totals],[Nov-xx]]","v":0},{"$f":"O18-PagamentosEmDinheiro[[#Totals],[Dez-xx]]","v":0}]
[]
[null,"OUTROS DADOS OPERACIONAIS"," ","Jan-xx","Fev-xx","Mar-xx","Abr-xx","Mai-xx","Jun-xx","Jul-xx","Ago-xx","Set-xx","Out-xx","Nov-xx","Dez-xx","Total"]
[null,"Volume de vendas (reais)",{"$nulls":13},{"$f":"SUM(OutrosDadosOperacionais[[#This Row],[Jan-xx]:[Dez-xx]])","v":0}]
[null,"Saldo de contas a receber",{"$nulls":13},{"$f":"SUM(OutrosDadosOperacionais[[#This Row],[ ]:[Dez-xx]])","v":0}]
[null,"Saldo de dívida inválida",{"$nulls":13},{"$f":"SUM(OutrosDadosOperacionais[[#This Row],[ ]:[Dez-xx]])","v":0}]
[null,"Estoque disponível",{"$nulls":13},{"$f":"SUM(OutrosDadosOperacionais[[#This Row],[ ]:[Dez-xx]])","v":0}]
[null,"Saldo de contas a pagar",{"$nulls":13},{"$f":"SUM(OutrosDadosOperacionais[[#This Row],[ ]:[Dez-xx]])","v":0}]
[null,"Depreciação",{"$nulls":13},{"$f":"SUM(OutrosDadosOperacionais[[#This Row],[Jan-xx]:[Dez-xx]])","v":0}]

{"sheet":"Gráfico de fluxo de caixa","index":1,"n_rows":2,"n_cols":7,"rows_kept":2,"merged":[[1,1,1,5],[53,2,53,3]]}
[]
[null,"Alerta de mínimo de saldo em dinheiro:",{"$nulls":4},{"$f":"[0]!Mínimum_em_caixa","v":{"v":0,"d":"R$ 0"}}]